[Event "Late-Titled-Tuesday-Blitz-May-14-2024"]
[Site "Chess.com"]
[Date "2024.05.14"]
[Round "1"]
[White "IlyaGrigorjev"]
[Black "maksimys18"]
[Result "1-0"]
[WhiteElo "2874"]
[BlackElo "2491"]
[TimeControl "180+1"]
[EndTime "14:07:30 PDT"]
[Termination "IlyaGrigorjev won by checkmate"]

1. c4 {[%clk 0:03:00.9]} 1... e6 {[%clk 0:03:00]} 2. d4 {[%clk 0:02:59]} 2... d5
{[%clk 0:02:59.9]} 3. Nf3 {[%clk 0:02:59.2]} 3... Nf6 {[%clk 0:02:59]} 4. g3
{[%clk 0:02:59.7]} 4... Be7 {[%clk 0:02:59.2]} 5. Bg2 {[%clk 0:03:00]} 5... O-O
{[%clk 0:02:59.4]} 6. O-O {[%clk 0:03:00.6]} 6... b6 {[%clk 0:02:59.6]} 7. cxd5
{[%clk 0:02:54.6]} 7... exd5 {[%clk 0:02:56.7]} 8. Nc3 {[%clk 0:02:55.1]} 8...
Be6 {[%clk 0:02:56.6]} 9. Ne5 {[%clk 0:02:48.6]} 9... c5 {[%clk 0:02:54.6]} 10.
Bf4 {[%clk 0:02:30.9]} 10... Na6 {[%clk 0:02:30.1]} 11. Nc6 {[%clk 0:02:24.7]}
11... Qd7 {[%clk 0:02:29.9]} 12. Nxe7+ {[%clk 0:02:25.1]} 12... Qxe7 {[%clk
0:02:30.8]} 13. dxc5 {[%clk 0:02:25.5]} 13... bxc5 {[%clk 0:02:29.7]} 14. Qa4
{[%clk 0:02:20.2]} 14... Qb7 {[%clk 0:02:16.2]} 15. Rac1 {[%clk 0:02:09.4]}
15... Rac8 {[%clk 0:02:11]} 16. Rfd1 {[%clk 0:02:06]} 16... Rfd8 {[%clk
0:02:10.7]} 17. Bg5 {[%clk 0:02:02.7]} 17... Nb4 {[%clk 0:01:46.5]} 18. a3
{[%clk 0:01:53.5]} 18... Nc6 {[%clk 0:01:44.8]} 19. Bxf6 {[%clk 0:01:37.6]}
19... gxf6 {[%clk 0:01:43.8]} 20. Nxd5 {[%clk 0:01:25.9]} 20... Qxb2 {[%clk
0:01:39.4]} 21. Rxc5 {[%clk 0:01:12.5]} 21... Qxe2 {[%clk 0:01:00.5]} 22. Nxf6+
{[%clk 0:01:05.1]} 22... Kg7 {[%clk 0:00:59.8]} 23. Nh5+ {[%clk 0:01:00.4]}
23... Kh8 {[%clk 0:00:55.8]} 24. Rf1 {[%clk 0:00:40.5]} 24... Rd4 {[%clk
0:00:29.6]} 25. Qb5 {[%clk 0:00:20.2]} 25... Qxb5 {[%clk 0:00:28.7]} 26. Rxb5
{[%clk 0:00:21.1]} 26... Bc4 {[%clk 0:00:28.8]} 27. Bxc6 {[%clk 0:00:17.9]}
27... Bxb5 {[%clk 0:00:16.7]} 28. Bxb5 {[%clk 0:00:16.4]} 28... Rc5 {[%clk
0:00:13.4]} 29. Be2 {[%clk 0:00:16.9]} 29... Rd2 {[%clk 0:00:13.1]} 30. Nf4
{[%clk 0:00:16.4]} 30... Ra2 {[%clk 0:00:13.4]} 31. Rd1 {[%clk 0:00:13.9]} 31...
Rxa3 {[%clk 0:00:12.9]} 32. Rd7 {[%clk 0:00:12.4]} 32... Kg7 {[%clk 0:00:12.8]}
33. Ne6+ {[%clk 0:00:12.5]} 33... Kf6 {[%clk 0:00:13.1]} 34. Nxc5 {[%clk
0:00:13.4]} 34... Ra5 {[%clk 0:00:11.5]} 35. Ne4+ {[%clk 0:00:13.2]} 35... Ke6
{[%clk 0:00:11.8]} 36. Rb7 {[%clk 0:00:12.6]} 36... Ra2 {[%clk 0:00:11.4]} 37.
Bc4+ {[%clk 0:00:12.7]} 37... Ke5 {[%clk 0:00:12.3]} 38. Bxa2 {[%clk 0:00:13.6]}
38... a5 {[%clk 0:00:12.9]} 39. Ra7 {[%clk 0:00:13.8]} 39... h5 {[%clk
0:00:13.8]} 40. Rxa5+ {[%clk 0:00:14.7]} 40... Kd4 {[%clk 0:00:13.7]} 41. Rxh5
{[%clk 0:00:15.6]} 41... f5 {[%clk 0:00:13.4]} 42. Rxf5 {[%clk 0:00:15.8]} 42...
Kd3 {[%clk 0:00:14.3]} 43. h4 {[%clk 0:00:15.9]} 43... Kd4 {[%clk 0:00:15.2]}
44. h5 {[%clk 0:00:15.9]} 44... Kxe4 {[%clk 0:00:16.1]} 45. Bb1+ {[%clk
0:00:15.7]} 45... Kd4 {[%clk 0:00:15.8]} 46. h6 {[%clk 0:00:16.5]} 46... Kc4
{[%clk 0:00:15.8]} 47. h7 {[%clk 0:00:16.5]} 47... Kc3 {[%clk 0:00:16.7]} 48.
h8=Q+ {[%clk 0:00:16.8]} 48... Kd2 {[%clk 0:00:17.6]} 49. Qd4+ {[%clk
0:00:16.9]} 49... Ke1 {[%clk 0:00:18.5]} 50. Re5# {[%clk 0:00:16.8]} 1-0

[Event "Late-Titled-Tuesday-Blitz-May-14-2024"]
[Site "Chess.com"]
[Date "2024.05.14"]
[Round "1"]
[White "StoreySniper"]
[Black "Evgeny81"]
[Result "0-1"]
[WhiteElo "2427"]
[BlackElo "2767"]
[TimeControl "180+1"]
[EndTime "14:07:31 PDT"]
[Termination "Evgeny81 won on time"]

1. e4 {[%clk 0:03:00.9]} 1... c5 {[%clk 0:02:59.5]} 2. Nf3 {[%clk 0:03:01]} 2...
Nc6 {[%clk 0:02:58.5]} 3. d4 {[%clk 0:03:00.3]} 3... cxd4 {[%clk 0:02:57.4]} 4.
Nxd4 {[%clk 0:03:00.4]} 4... Qb6 {[%clk 0:02:57.6]} 5. Nb3 {[%clk 0:02:59.3]}
5... Nf6 {[%clk 0:02:57]} 6. Qe2 {[%clk 0:02:59.2]} 6... d6 {[%clk 0:02:55]} 7.
Be3 {[%clk 0:02:59]} 7... Qc7 {[%clk 0:02:55]} 8. Nc3 {[%clk 0:02:59.1]} 8... g6
{[%clk 0:02:54.4]} 9. O-O-O {[%clk 0:02:55.2]} 9... Bg7 {[%clk 0:02:54.5]} 10.
Kb1 {[%clk 0:02:54.3]} 10... O-O {[%clk 0:02:53.8]} 11. f3 {[%clk 0:02:53.5]}
11... Be6 {[%clk 0:02:50.2]} 12. h4 {[%clk 0:02:52.9]} 12... h5 {[%clk
0:02:42.9]} 13. g4 {[%clk 0:02:46.4]} 13... hxg4 {[%clk 0:02:43.8]} 14. f4
{[%clk 0:02:41.8]} 14... Nh5 {[%clk 0:02:38.5]} 15. f5 {[%clk 0:02:39.3]} 15...
Bxb3 {[%clk 0:02:33.8]} 16. axb3 {[%clk 0:02:34.9]} 16... Ng3 {[%clk 0:02:30]}
17. Qxg4 {[%clk 0:02:34.1]} 17... Nxh1 {[%clk 0:02:30.3]} 18. Bc4 {[%clk
0:02:31.7]} 18... Ne5 {[%clk 0:02:27.6]} 19. Qg2 {[%clk 0:02:24.7]} 19... Nxc4
{[%clk 0:02:26.8]} 20. bxc4 {[%clk 0:02:24.5]} 20... Qxc4 {[%clk 0:02:23.1]} 21.
Nd5 {[%clk 0:02:24.3]} 21... Rfe8 {[%clk 0:02:12.9]} 22. fxg6 {[%clk 0:02:19.8]}
22... f6 {[%clk 0:01:48.1]} 23. Rxh1 {[%clk 0:02:13.1]} 23... e6 {[%clk
0:01:46.5]} 24. Nf4 {[%clk 0:01:57.6]} 24... d5 {[%clk 0:01:37.6]} 25. exd5
{[%clk 0:01:51.5]} 25... exd5 {[%clk 0:01:37.6]} 26. Bc1 {[%clk 0:01:38]} 26...
Qe4 {[%clk 0:01:33.6]} 27. Qh3 {[%clk 0:01:16.9]} 27... Rac8 {[%clk 0:01:30]}
28. Rh2 {[%clk 0:01:11.3]} 28... Bh6 {[%clk 0:01:25.8]} 29. Nh5 {[%clk
0:01:05.4]} 29... Qe1 {[%clk 0:01:05.4]} 30. Nxf6+ {[%clk 0:01:00.9]} 30... Kh8
{[%clk 0:01:05.8]} 31. Rh1 {[%clk 0:00:53.3]} 31... Qf2 {[%clk 0:01:00.6]} 32.
g7+ {[%clk 0:00:40.6]} 32... Bxg7 {[%clk 0:00:57.4]} 33. Nxe8 {[%clk 0:00:21.8]}
33... Qxc2+ {[%clk 0:00:56.8]} 34. Ka2 {[%clk 0:00:20]} 34... Rc4 {[%clk
0:00:51.5]} 35. Nxg7 {[%clk 0:00:15.3]} 35... Ra4+ {[%clk 0:00:51.4]} 36. Qa3
{[%clk 0:00:15.9]} 36... Rxa3+ {[%clk 0:00:51.4]} 37. Kxa3 {[%clk 0:00:16.5]}
37... Qd3+ {[%clk 0:00:47.9]} 38. Ka2 {[%clk 0:00:15]} 38... Qa6+ {[%clk
0:00:47.3]} 39. Kb1 {[%clk 0:00:13.1]} 39... Qd3+ {[%clk 0:00:44.3]} 40. Ka1
{[%clk 0:00:12.4]} 40... Kxg7 {[%clk 0:00:45.2]} 41. Rg1+ {[%clk 0:00:11.1]}
41... Kh7 {[%clk 0:00:45]} 42. Rg5 {[%clk 0:00:10.3]} 42... Qe4 {[%clk
0:00:39.1]} 43. h5 {[%clk 0:00:08.4]} 43... d4 {[%clk 0:00:37.6]} 44. h6 {[%clk
0:00:05.3]} 44... d3 {[%clk 0:00:34.2]} 45. Rg7+ {[%clk 0:00:05.4]} 45... Kh8
{[%clk 0:00:34.5]} 46. Bd2 {[%clk 0:00:04.8]} 46... Qa4+ {[%clk 0:00:32.8]} 47.
Kb1 {[%clk 0:00:04.8]} 47... Qc2+ {[%clk 0:00:32.9]} 48. Ka1 {[%clk 0:00:04.5]}
48... Qxd2 {[%clk 0:00:33.8]} 49. Rxb7 {[%clk 0:00:04.6]} 49... Qa5+ {[%clk
0:00:32.4]} 50. Kb1 {[%clk 0:00:03.2]} 50... Qe1+ {[%clk 0:00:32.9]} 51. Ka2
{[%clk 0:00:03]} 51... d2 {[%clk 0:00:33.2]} 0-1

[Event "Late-Titled-Tuesday-Blitz-May-14-2024"]
[Site "Chess.com"]
[Date "2024.05.14"]
[Round "1"]
[White "alexrustemov"]
[Black "zsizsi99"]
[Result "1-0"]
[WhiteElo "2925"]
[BlackElo "2522"]
[TimeControl "180+1"]
[EndTime "14:07:33 PDT"]
[Termination "alexrustemov won on time"]

1. d4 {[%clk 0:03:00.9]} 1... Nf6 {[%clk 0:02:59.6]} 2. c4 {[%clk 0:03:01.3]}
2... e6 {[%clk 0:02:58.7]} 3. Nf3 {[%clk 0:03:01.7]} 3... d5 {[%clk 0:02:58.1]}
4. cxd5 {[%clk 0:03:01.5]} 4... exd5 {[%clk 0:02:57.6]} 5. Nc3 {[%clk 0:03:02]}
5... c6 {[%clk 0:02:56.8]} 6. Bf4 {[%clk 0:03:02.4]} 6... g6 {[%clk 0:02:51.2]}
7. e3 {[%clk 0:02:57]} 7... Bg7 {[%clk 0:02:51.1]} 8. Bd3 {[%clk 0:02:50.2]}
8... O-O {[%clk 0:02:51]} 9. h3 {[%clk 0:02:49.8]} 9... Be6 {[%clk 0:02:48.1]}
10. O-O {[%clk 0:02:49.5]} 10... Nbd7 {[%clk 0:02:48.4]} 11. Qc2 {[%clk
0:02:47.6]} 11... Re8 {[%clk 0:02:47.3]} 12. Rab1 {[%clk 0:02:46.6]} 12... Nh5
{[%clk 0:02:46]} 13. Bh2 {[%clk 0:02:44.7]} 13... f5 {[%clk 0:02:46.3]} 14. Ne2
{[%clk 0:02:39.8]} 14... a5 {[%clk 0:02:44.1]} 15. Nf4 {[%clk 0:02:38.5]} 15...
Nxf4 {[%clk 0:02:41.8]} 16. Bxf4 {[%clk 0:02:39.4]} 16... h6 {[%clk 0:02:35.4]}
17. h4 {[%clk 0:02:37.6]} 17... Nf6 {[%clk 0:02:30.5]} 18. Be5 {[%clk
0:02:33.9]} 18... Ne4 {[%clk 0:02:29.3]} 19. g3 {[%clk 0:02:28.6]} 19... Bf8
{[%clk 0:02:20.3]} 20. Kg2 {[%clk 0:02:26.9]} 20... a4 {[%clk 0:02:19.2]} 21.
Rh1 {[%clk 0:02:25]} 21... h5 {[%clk 0:02:14.8]} 22. Bf4 {[%clk 0:02:24]} 22...
Qa5 {[%clk 0:02:04]} 23. Ne5 {[%clk 0:02:23.1]} 23... Bf7 {[%clk 0:02:04.1]} 24.
f3 {[%clk 0:02:20.4]} 24... Qd2+ {[%clk 0:01:54.9]} 25. Qxd2 {[%clk 0:02:17.5]}
25... Nxd2 {[%clk 0:01:55.6]} 26. Rbc1 {[%clk 0:02:12.7]} 26... Bg7 {[%clk
0:01:34.4]} 27. Nxf7 {[%clk 0:02:05.5]} 27... Kxf7 {[%clk 0:01:34.9]} 28. Rhd1
{[%clk 0:02:05.8]} 28... Nc4 {[%clk 0:01:24]} 29. Bxc4 {[%clk 0:02:06]} 29...
dxc4 {[%clk 0:01:24.7]} 30. Rxc4 {[%clk 0:02:06.4]} 30... Red8 {[%clk 0:01:22]}
31. Rdc1 {[%clk 0:02:04.4]} 31... Rd5 {[%clk 0:01:15.5]} 32. R1c2 {[%clk
0:02:02.4]} 32... Ra6 {[%clk 0:00:48.4]} 33. Kf2 {[%clk 0:02:01.2]} 33... Rb5
{[%clk 0:00:47]} 34. Ke2 {[%clk 0:01:58.9]} 34... Rab6 {[%clk 0:00:47.1]} 35.
Kd3 {[%clk 0:01:56.1]} 35... Rxb2 {[%clk 0:00:46.7]} 36. Rxa4 {[%clk 0:01:50.8]}
36... Rb1 {[%clk 0:00:44.5]} 37. e4 {[%clk 0:01:43.2]} 37... Rd1+ {[%clk
0:00:38.1]} 38. Rd2 {[%clk 0:01:41.5]} 38... Rf1 {[%clk 0:00:30.1]} 39. Ke3
{[%clk 0:01:27.3]} 39... Re1+ {[%clk 0:00:16.2]} 40. Re2 {[%clk 0:01:24.6]}
40... Rd1 {[%clk 0:00:12.8]} 41. exf5 {[%clk 0:00:58.7]} 41... gxf5 {[%clk
0:00:13.3]} 42. Be5 {[%clk 0:00:58]} 42... Bxe5 {[%clk 0:00:09.4]} 43. dxe5
{[%clk 0:00:57.6]} 43... Rg1 {[%clk 0:00:08.8]} 44. Kf4 {[%clk 0:00:56.7]} 44...
Ke6 {[%clk 0:00:08.3]} 45. Rd4 {[%clk 0:00:56.8]} 45... Rb5 {[%clk 0:00:04.9]}
46. Rd6+ {[%clk 0:00:55.8]} 46... Ke7 {[%clk 0:00:05.4]} 47. Rh6 {[%clk
0:00:47.3]} 47... Rb4+ {[%clk 0:00:04.4]} 48. Kxf5 {[%clk 0:00:47.5]} 48... Rxg3
{[%clk 0:00:05]} 49. Rh7+ {[%clk 0:00:47.6]} 49... Ke8 {[%clk 0:00:04.3]} 50. f4
{[%clk 0:00:42.2]} 50... Rg4 {[%clk 0:00:02.7]} 51. Re4 {[%clk 0:00:41]} 51...
Rxe4 {[%clk 0:00:01.9]} 52. Kxe4 {[%clk 0:00:41.3]} 52... Rxh4 {[%clk
0:00:02.2]} 53. Rxb7 {[%clk 0:00:38]} 53... Rh2 {[%clk 0:00:01.7]} 54. Kf5
{[%clk 0:00:37.3]} 1-0

[Event "Late-Titled-Tuesday-Blitz-May-14-2024"]
[Site "Chess.com"]
[Date "2024.05.14"]
[Round "1"]
[White "MightyGMpretender"]
[Black "HajiyevKanan"]
[Result "0-1"]
[WhiteElo "2787"]
[BlackElo "2463"]
[TimeControl "180+1"]
[EndTime "14:07:34 PDT"]
[Termination "HajiyevKanan won by checkmate"]

1. e4 {[%clk 0:02:58.6]} 1... c6 {[%clk 0:02:57.8]} 2. Nf3 {[%clk 0:02:51.4]}
2... d5 {[%clk 0:02:58.7]} 3. Nc3 {[%clk 0:02:50.5]} 3... a6 {[%clk 0:02:59.4]}
4. d4 {[%clk 0:02:49.5]} 4... Bg4 {[%clk 0:02:58.4]} 5. Bd3 {[%clk 0:02:49.4]}
5... e6 {[%clk 0:02:58.7]} 6. h3 {[%clk 0:02:49.6]} 6... Bh5 {[%clk 0:02:59.2]}
7. O-O {[%clk 0:02:45.6]} 7... Nf6 {[%clk 0:02:59]} 8. e5 {[%clk 0:02:46.1]}
8... Nfd7 {[%clk 0:02:58.9]} 9. Ne2 {[%clk 0:02:40.1]} 9... Bxf3 {[%clk
0:02:57.9]} 10. gxf3 {[%clk 0:02:40.8]} 10... c5 {[%clk 0:02:58.6]} 11. c3
{[%clk 0:02:41.2]} 11... Nc6 {[%clk 0:02:57.2]} 12. Be3 {[%clk 0:02:40.2]} 12...
Qb6 {[%clk 0:02:55]} 13. Rb1 {[%clk 0:02:39]} 13... cxd4 {[%clk 0:02:52.4]} 14.
cxd4 {[%clk 0:02:38.5]} 14... Nb4 {[%clk 0:02:52.5]} 15. a3 {[%clk 0:02:36.1]}
15... Nxd3 {[%clk 0:02:52.3]} 16. Qxd3 {[%clk 0:02:36.9]} 16... Be7 {[%clk
0:02:49.9]} 17. f4 {[%clk 0:02:36.6]} 17... g6 {[%clk 0:02:49.2]} 18. Nc3 {[%clk
0:02:23.5]} 18... Rc8 {[%clk 0:02:45.8]} 19. Kh1 {[%clk 0:02:22.6]} 19... Qb3
{[%clk 0:02:38.4]} 20. Rg1 {[%clk 0:02:12.7]} 20... Nb6 {[%clk 0:02:33.5]} 21.
Qe2 {[%clk 0:02:02.5]} 21... h5 {[%clk 0:02:09.6]} 22. Rbd1 {[%clk 0:01:47.1]}
22... Nc4 {[%clk 0:01:58.9]} 23. Bc1 {[%clk 0:01:47.3]} 23... Nxa3 {[%clk
0:01:49]} 24. f5 {[%clk 0:01:44.9]} 24... gxf5 {[%clk 0:01:45.4]} 25. Rg3 {[%clk
0:01:38.1]} 25... Qc2 {[%clk 0:01:39.5]} 26. Rd2 {[%clk 0:01:16.3]} 26... Qxc1+
{[%clk 0:01:37.9]} 27. Rg1 {[%clk 0:01:17]} 27... Rxc3 {[%clk 0:01:31.1]} 28.
Rxc1 {[%clk 0:01:09.3]} 28... Rxc1+ {[%clk 0:01:32]} 29. Kh2 {[%clk 0:01:09.3]}
29... Nc4 {[%clk 0:01:18.7]} 30. Rc2 {[%clk 0:01:09.5]} 30... Rb1 {[%clk
0:01:12.2]} 31. Qd3 {[%clk 0:01:04]} 31... Rxb2 {[%clk 0:00:51.4]} 32. Rxb2
{[%clk 0:01:03.9]} 32... Nxb2 {[%clk 0:00:52.3]} 33. Qb3 {[%clk 0:01:04.5]}
33... Nc4 {[%clk 0:00:51.9]} 34. Qxb7 {[%clk 0:01:05.3]} 34... a5 {[%clk
0:00:49.2]} 35. f4 {[%clk 0:00:57.6]} 35... h4 {[%clk 0:00:48.3]} 36. Qc8+
{[%clk 0:00:45.8]} 36... Bd8 {[%clk 0:00:48.4]} 37. Qc6+ {[%clk 0:00:46.4]}
37... Kf8 {[%clk 0:00:46.9]} 38. Qd7 {[%clk 0:00:47]} 38... Kg7 {[%clk
0:00:46.7]} 39. Kg2 {[%clk 0:00:44.9]} 39... Bb6 {[%clk 0:00:41]} 40. Qe7 {[%clk
0:00:44.7]} 40... Bxd4 {[%clk 0:00:37.8]} 41. Qg5+ {[%clk 0:00:44.5]} 41... Kf8
{[%clk 0:00:36.4]} 42. Qd8+ {[%clk 0:00:44.7]} 42... Kg7 {[%clk 0:00:36.6]} 43.
Qf6+ {[%clk 0:00:45.4]} 43... Kg8 {[%clk 0:00:35.8]} 44. Qg5+ {[%clk 0:00:45.8]}
44... Kf8 {[%clk 0:00:34.2]} 45. Kf3 {[%clk 0:00:46.4]} 45... Nd2+ {[%clk
0:00:30]} 46. Ke2 {[%clk 0:00:44.1]} 46... Ne4 {[%clk 0:00:30.6]} 47. Qd8+
{[%clk 0:00:38.5]} 47... Kg7 {[%clk 0:00:31]} 48. Qxa5 {[%clk 0:00:39.4]} 48...
Rc8 {[%clk 0:00:30.7]} 49. Kd3 {[%clk 0:00:31]} 49... Bf2 {[%clk 0:00:19.4]} 50.
Ke2 {[%clk 0:00:17.5]} 50... Bg3 {[%clk 0:00:19.2]} 51. Ke3 {[%clk 0:00:14.9]}
51... Rc3+ {[%clk 0:00:18.3]} 52. Kd4 {[%clk 0:00:15.4]} 52... Bf2# {[%clk
0:00:14.8]} 0-1

[Event "Late-Titled-Tuesday-Blitz-May-14-2024"]
[Site "Chess.com"]
[Date "2024.05.14"]
[Round "1"]
[White "HowTo2Draw"]
[Black "katharinareinecke"]
[Result "1-0"]
[WhiteElo "2552"]
[BlackElo "1893"]
[TimeControl "180+1"]
[EndTime "14:07:35 PDT"]
[Termination "HowTo2Draw won by resignation"]

1. c4 {[%clk 0:02:58.9]} 1... c6 {[%clk 0:02:59.7]} 2. b3 {[%clk 0:02:56.1]}
2... d5 {[%clk 0:02:59.4]} 3. Bb2 {[%clk 0:02:55]} 3... Nf6 {[%clk 0:02:58.9]}
4. d3 {[%clk 0:02:51.5]} 4... e6 {[%clk 0:02:56.6]} 5. Nd2 {[%clk 0:02:51.6]}
5... Be7 {[%clk 0:02:55.2]} 6. Ngf3 {[%clk 0:02:51.8]} 6... O-O {[%clk
0:02:53.8]} 7. g3 {[%clk 0:02:51.6]} 7... b6 {[%clk 0:02:49.5]} 8. Bg2 {[%clk
0:02:51.9]} 8... Bb7 {[%clk 0:02:48.9]} 9. O-O {[%clk 0:02:52.4]} 9... Nbd7
{[%clk 0:02:46.5]} 10. e4 {[%clk 0:02:52.8]} 10... Ne8 {[%clk 0:02:35.6]} 11.
Re1 {[%clk 0:02:48.4]} 11... Bf6 {[%clk 0:02:32.4]} 12. e5 {[%clk 0:02:43.9]}
12... Be7 {[%clk 0:02:31.6]} 13. cxd5 {[%clk 0:02:41.4]} 13... cxd5 {[%clk
0:02:30.7]} 14. d4 {[%clk 0:02:26.6]} 14... g6 {[%clk 0:02:30.4]} 15. Qe2 {[%clk
0:02:11.2]} 15... Ng7 {[%clk 0:02:29.3]} 16. Nf1 {[%clk 0:02:03.5]} 16... a6
{[%clk 0:02:25]} 17. Rac1 {[%clk 0:01:44.6]} 17... Rc8 {[%clk 0:02:24.2]} 18. h4
{[%clk 0:01:40.8]} 18... Bb4 {[%clk 0:02:21.8]} 19. Red1 {[%clk 0:01:39.3]}
19... Qe7 {[%clk 0:02:16.5]} 20. Ne3 {[%clk 0:01:36.6]} 20... Bc6 {[%clk
0:02:08.3]} 21. Qxa6 {[%clk 0:01:29.1]} 21... Ra8 {[%clk 0:02:06.4]} 22. Qe2
{[%clk 0:01:28.5]} 22... Rfc8 {[%clk 0:01:35.3]} 23. a4 {[%clk 0:01:27.3]} 23...
Ba3 {[%clk 0:01:16.9]} 24. Bf1 {[%clk 0:01:10.9]} 24... Nf5 {[%clk 0:01:10.6]}
25. Nxf5 {[%clk 0:01:10.5]} 25... gxf5 {[%clk 0:01:10.8]} 26. Bxa3 {[%clk
0:01:06.8]} 26... Qxa3 {[%clk 0:01:10.1]} 27. Qe3 {[%clk 0:01:07.3]} 27... f4
{[%clk 0:00:59.3]} 28. Qxf4 {[%clk 0:01:05.3]} 28... Qxb3 {[%clk 0:00:53.7]} 29.
Rd3 {[%clk 0:00:53.7]} 29... Qb4 {[%clk 0:00:23.6]} 30. Qg5+ {[%clk 0:00:51.9]}
30... Kh8 {[%clk 0:00:20.6]} 31. Qh5 {[%clk 0:00:48.7]} 31... Qf8 {[%clk
0:00:19.2]} 32. Ng5 {[%clk 0:00:47.6]} 32... Qg7 {[%clk 0:00:18.6]} 33. Nxf7+
{[%clk 0:00:40.1]} 33... Kg8 {[%clk 0:00:18.4]} 34. Nh6+ {[%clk 0:00:39.9]}
34... Kh8 {[%clk 0:00:18.1]} 35. Rdc3 {[%clk 0:00:40.5]} 35... Bb7 {[%clk
0:00:16.4]} 36. Nf7+ {[%clk 0:00:38.6]} 36... Kg8 {[%clk 0:00:15.9]} 37. Nd6
{[%clk 0:00:31.1]} 37... Rxc3 {[%clk 0:00:15.5]} 38. Rxc3 {[%clk 0:00:32]} 38...
Rxa4 {[%clk 0:00:15.3]} 39. Nxb7 {[%clk 0:00:31.5]} 39... Rxd4 {[%clk
0:00:14.6]} 40. Rc8+ {[%clk 0:00:29.4]} 40... Nf8 {[%clk 0:00:11.8]} 41. Nd8
{[%clk 0:00:27.4]} 41... Rg4 {[%clk 0:00:10.5]} 42. Bg2 {[%clk 0:00:21.2]} 42...
Qxe5 {[%clk 0:00:07.3]} 43. Qf7+ {[%clk 0:00:19.2]} 43... Kh8 {[%clk 0:00:03]}
44. Qxf8+ {[%clk 0:00:19.6]} 44... Rg8 {[%clk 0:00:01.8]} 45. Qxg8+ {[%clk
0:00:19.1]} 45... Kxg8 {[%clk 0:00:01.6]} 46. Nc6+ {[%clk 0:00:19.7]} 46... Kg7
{[%clk 0:00:00.9]} 47. Nxe5 {[%clk 0:00:20.2]} 1-0

[Event "Late-Titled-Tuesday-Blitz-May-14-2024"]
[Site "Chess.com"]
[Date "2024.05.14"]
[Round "1"]
[White "cthake"]
[Black "VacheH009"]
[Result "0-1"]
[WhiteElo "1852"]
[BlackElo "2552"]
[TimeControl "180+1"]
[EndTime "14:07:36 PDT"]
[Termination "VacheH009 won by resignation"]

1. e4 {[%clk 0:03:00.1]} 1... e6 {[%clk 0:02:52.2]} 2. d4 {[%clk 0:02:58.7]}
2... d5 {[%clk 0:02:52.5]} 3. Nc3 {[%clk 0:02:56.8]} 3... Nf6 {[%clk 0:02:50.9]}
4. Bg5 {[%clk 0:02:55.9]} 4... Bb4 {[%clk 0:02:44]} 5. e5 {[%clk 0:02:54.5]}
5... h6 {[%clk 0:02:42.4]} 6. Bd2 {[%clk 0:02:51]} 6... Bxc3 {[%clk 0:02:40.7]}
7. bxc3 {[%clk 0:02:49.7]} 7... Ne4 {[%clk 0:02:41.6]} 8. Qg4 {[%clk 0:02:49.4]}
8... g6 {[%clk 0:02:37.5]} 9. h4 {[%clk 0:02:47.2]} 9... Nxd2 {[%clk 0:02:25.8]}
10. Kxd2 {[%clk 0:02:46.8]} 10... c5 {[%clk 0:02:26.7]} 11. Rh3 {[%clk 0:02:39]}
11... Nc6 {[%clk 0:02:17.9]} 12. Bd3 {[%clk 0:02:33.4]} 12... h5 {[%clk
0:02:00.5]} 13. Qg3 {[%clk 0:02:25.2]} 13... cxd4 {[%clk 0:01:53.5]} 14. cxd4
{[%clk 0:02:14.1]} 14... Nxd4 {[%clk 0:01:44.2]} 15. Qf4 {[%clk 0:02:05.8]}
15... Nc6 {[%clk 0:01:33.7]} 16. Nf3 {[%clk 0:02:00.5]} 16... Qe7 {[%clk
0:01:22.7]} 17. Ng5 {[%clk 0:01:58.9]} 17... Qb4+ {[%clk 0:01:22.4]} 18. Qxb4
{[%clk 0:01:54.5]} 18... Nxb4 {[%clk 0:01:23.3]} 19. Rf3 {[%clk 0:01:52.6]}
19... O-O {[%clk 0:01:03]} 20. Be2 {[%clk 0:01:43.4]} 20... Nc6 {[%clk
0:01:01.1]} 21. Re3 {[%clk 0:01:42.4]} 21... Bd7 {[%clk 0:00:52.4]} 22. f4
{[%clk 0:01:42.2]} 22... Rfc8 {[%clk 0:00:50.5]} 23. c3 {[%clk 0:01:35.1]} 23...
d4 {[%clk 0:00:36.4]} 24. cxd4 {[%clk 0:01:34.3]} 24... Nxd4 {[%clk 0:00:37.3]}
25. Bd3 {[%clk 0:01:33.7]} 25... Bb5 {[%clk 0:00:34.2]} 26. Ne4 {[%clk
0:01:32.5]} 26... Bxd3 {[%clk 0:00:32.9]} 27. Kxd3 {[%clk 0:01:32.8]} 27... Nf5
{[%clk 0:00:30.7]} 28. Nf6+ {[%clk 0:01:32.4]} 28... Kg7 {[%clk 0:00:30.4]} 29.
Re4 {[%clk 0:01:28.7]} 29... Rd8+ {[%clk 0:00:28.3]} 30. Kc2 {[%clk 0:01:27]}
30... Rac8+ {[%clk 0:00:27.7]} 31. Kb3 {[%clk 0:01:23.2]} 31... Rd3+ {[%clk
0:00:27.4]} 32. Kb4 {[%clk 0:01:23.4]} 32... Ne7 {[%clk 0:00:11.4]} 33. Rb1
{[%clk 0:01:11]} 33... Nd5+ {[%clk 0:00:11.1]} 34. Ka5 {[%clk 0:01:07.4]} 34...
Rc5+ {[%clk 0:00:07.1]} 35. Ka4 {[%clk 0:01:06.6]} 35... b5+ {[%clk 0:00:02.6]}
36. Ka5 {[%clk 0:01:04.7]} 36... b4+ {[%clk 0:00:02.1]} 37. Ka6 {[%clk 0:01:05]}
37... Nxf6 {[%clk 0:00:01.5]} 38. exf6+ {[%clk 0:01:04.5]} 38... Kxf6 {[%clk
0:00:02.4]} 39. Rbxb4 {[%clk 0:01:03]} 39... Ra3+ {[%clk 0:00:03]} 40. Ra4
{[%clk 0:01:03.3]} 40... Rxa4+ {[%clk 0:00:03]} 41. Rxa4 {[%clk 0:01:03.7]}
41... Rc7 {[%clk 0:00:03.9]} 42. Kb5 {[%clk 0:01:02.2]} 42... Kf5 {[%clk
0:00:04.5]} 43. g3 {[%clk 0:01:00.9]} 43... Kg4 {[%clk 0:00:04.9]} 44. Ra3
{[%clk 0:01:00.1]} 44... f6 {[%clk 0:00:04]} 45. Re3 {[%clk 0:00:58.8]} 45...
Kf5 {[%clk 0:00:04]} 46. a4 {[%clk 0:00:58.1]} 46... e5 {[%clk 0:00:04.2]} 47.
fxe5 {[%clk 0:00:57.8]} 47... fxe5 {[%clk 0:00:05.1]} 48. a5 {[%clk 0:00:57.7]}
48... e4 {[%clk 0:00:05.6]} 49. a6 {[%clk 0:00:56.6]} 49... Ke5 {[%clk
0:00:06.2]} 50. Kb4 {[%clk 0:00:54.8]} 50... Kd4 {[%clk 0:00:06.7]} 51. Re1
{[%clk 0:00:53.9]} 51... Kd3 {[%clk 0:00:06.6]} 52. Rd1+ {[%clk 0:00:48.5]}
52... Ke2 {[%clk 0:00:07]} 53. Rd6 {[%clk 0:00:48.4]} 53... e3 {[%clk
0:00:07.7]} 54. Rxg6 {[%clk 0:00:48.2]} 54... Kf2 {[%clk 0:00:07.9]} 55. g4
{[%clk 0:00:46.2]} 55... e2 {[%clk 0:00:07.7]} 56. Re6 {[%clk 0:00:46.2]} 56...
hxg4 {[%clk 0:00:05.9]} 57. h5 {[%clk 0:00:45.4]} 57... e1=Q+ {[%clk 0:00:05]}
58. Rxe1 {[%clk 0:00:45.5]} 58... Kxe1 {[%clk 0:00:05.9]} 59. h6 {[%clk
0:00:45.6]} 59... g3 {[%clk 0:00:06.8]} 60. h7 {[%clk 0:00:45.9]} 60... Rxh7
{[%clk 0:00:07]} 61. Kc5 {[%clk 0:00:46.6]} 61... g2 {[%clk 0:00:07.9]} 62. Kc6
{[%clk 0:00:47.1]} 62... g1=Q {[%clk 0:00:08]} 0-1